fUSD/lending_fUSD_20260106
["ID","MTS","AMOUNT","RATE_DAILY","PERIOD"]
[400514704,1767689440509,-166.66,0.00020568,2]
[400514706,1767689440519,-162.0,0.00020698,2]
[400514708,1767689440528,-1000.0,0.00020735,2]
[400514710,1767689440538,-150.0,0.00020742,2]
[400514712,1767689440547,-823.0,0.00020773,2]
[400514714,1767689440558,-230.1,0.00020813,2]
[400514716,1767689440567,-166.66,0.00021205,2]
[400514718,1767689440576,-1000.0,0.00021512,2]
[400514720,1767689440585,-166.66,0.00021841,2]
[400514722,1767689440594,-189.52138732,0.000221,2]
[400514724,1767689440604,-239.86281191,0.0002211,2]
[400514726,1767689440614,-230.1,0.00022165,2]
[400514728,1767689440623,-1000.0,0.0002229,2]
[400514730,1767689440632,-476.79,0.00022478,2]
[400514732,1767689440641,-166.66,0.00022478,2]
[400514734,1767689440651,-500.0,0.00022499,2]
[400514736,1767689440661,-558.43229755,0.00022499,2]
[400514738,1767689440670,-2900.0,0.000225,15]
[400514740,1767689440680,-35434.58640439,0.000225,2]
[400514742,1767689440690,-522.3260812,0.0002271,2]
[400514744,1767689440699,-1152.0,0.00022714,2]
[400514746,1767689440708,-476.79,0.00022752,2]
[400514748,1767689440717,-150.0,0.00022973,2]
[400514750,1767689440727,-1000.0,0.00023,14]
[400514752,1767689440737,-181533.96063649,0.00023,2]
[400514754,1767689440747,-1006.14105963,0.00023,2]
[400514756,1767689440757,-1000.0,0.00023067,2]
[400514758,1767689440767,-2581.76674438,0.000231,2]
[400514760,1767689440783,-198.51288907,0.000232,2]
[400514762,1767689440792,-257.35902881,0.0002335,2]
[400514764,1767689440806,-200.0,0.000235,2]
[400514766,1767689440825,-230.1,0.00023517,2]
[400514768,1767689440833,-250.0,0.00023521,2]
[400514770,1767689440843,-2000.0,0.000236,2]
[400514772,1767689440852,-7977.98846143,0.00023745,2]
[400514774,1767689440864,-9310.5595266,0.00023745,2]
[400514776,1767689440875,-1000.0,0.00023845,2]
[400514778,1767689440884,-3600.0,0.00024,2]
[400514780,1767689440893,-1232.91707299,0.00024,2]
[400514782,1767689440903,-350.0,0.00024068,2]
[400514784,1767689440913,-2219.98656035,0.00024199,2]
[400514786,1767689440924,-500.0,0.00024209,2]
[400514788,1767689440934,-421.21037793,0.0002421,2]
[400514790,1767689440944,-3689.74283707,0.0002421,2]
[400514792,1767689440953,-163.93901323,0.0002455,15]
[400514794,1767689440962,-450.0,0.00024616,2]
[400514796,1767689440971,-596.50093463,0.0002465,2]
[400514798,1767689440981,-1000.0,0.00024658,2]
[400514800,1767689440990,-158.54938967,0.00024737,2]
[400514802,1767689440999,-200.0,0.00024773,2]
[400514804,1767689441009,-207.4,0.00024773,2]
[400514806,1767689441018,-215.0738,0.00024773,2]
[400514809,1767689441028,-223.0315306,0.00024773,2]
[400514811,1767689441037,-193.33077223,0.00024773,2]
[400514812,1767689441046,-1229.11402496,0.000248,2]
[400514814,1767689441056,-3043.9,0.000248,7]
[400514817,1767689441065,-29105.09346528,0.000248,2]
[400514819,1767689441077,-274.61225945,0.000248,2]
[400514879,1767689443518,-295.59,0.00016258,2]
[400514880,1767689443528,-943.11,0.000248,2]
[400514881,1767689443574,-686.78059288,0.000248,2]
[400514882,1767689443731,-582.78664334,0.000248,2]
[400514883,1767689443746,-66385.87119959,0.000248,2]
[400514884,1767689443756,-57327.2776017,0.000248,3]
[400514885,1767689443766,-1613.0,0.00024837,2]
[400514886,1767689443775,-230.1,0.00024869,2]
[400514887,1767689443784,-10208.409333,0.000249,3]
[400514888,1767689443794,-914.0,0.00024997,2]
[400514889,1767689443803,-206.77742407,0.00025,2]
[400514890,1767689443815,-1778.44003805,0.00025,2]
[400514891,1767689443824,-386.15601597,0.00025,2]
[400514892,1767689443833,-360.0,0.00025,2]
[400514893,1767689443843,-17288.54798798,0.00025429,2]
[400514894,1767689443854,-230.1,0.0002622,2]
[400514895,1767689443863,-398.42,0.00026676,2]
[400514896,1767689443872,-257.35902881,0.0002711,2]
[400514897,1767689443882,-17288.54798798,0.00027113,2]
[400514898,1767689443891,-2138.0,0.00027159,2]
[400514899,1767689443901,-2383.04,0.00027273,2]
[400514900,1767689443910,-2000.0,0.000273,2]
[400514901,1767689443920,-10427.0,0.000273,2]
[400514902,1767689443930,-230.1,0.00027572,2]
[400514903,1767689443939,-3006.07249481,0.00027799,2]
[400514904,1767689443950,-914.0,0.00027997,2]
[400514905,1767689443960,-5532.0,0.00028,3]
[400514906,1767689443970,-1133.0,0.00028272,5]
[400514907,1767689443980,-3043.9,0.000283,7]
[400514908,1767689443991,-5532.0,0.000286,5]
[400514909,1767689444001,-959.09,0.00028686,20]
[400514910,1767689444011,-17288.54798798,0.00028797,2]
[400514911,1767689444020,-230.1,0.00028924,2]
[400514912,1767689444031,-444.61,0.00029,14]
[400514913,1767689444041,-5701.45,0.00029831,2]
[400514914,1767689444051,-505.0,0.00029877,2]
[400514915,1767689444060,-800.0,0.00029928,11]
[400514916,1767689444069,-800.0,0.00029928,11]
[400514917,1767689444079,-800.0,0.00029928,11]
[400514918,1767689444089,-800.0,0.00029928,11]
[400514919,1767689444099,-800.0,0.00029928,11]
[400514920,1767689444288,-800.0,0.00029928,11]
[400514921,1767689444298,-800.0,0.00029928,11]
[400514922,1767689444307,-800.0,0.00029928,11]
[400514923,1767689444316,-242.31565174,0.00029935,2]
[400514924,1767689444326,-402.77588387,0.0002997,2]
[400514925,1767689444335,-400.0,0.0003007,2]
[400514926,1767689444344,-230.1,0.00030276,2]
[400514927,1767689444354,-17288.54798798,0.00030481,2]
[400514928,1767689444363,-300.0,0.00030622,2]
[400514929,1767689444372,-3043.9,0.000307,7]
[400514930,1767689444381,-624.77,0.00030801,2]
[400514931,1767689444390,-158.54938967,0.00030853,2]
[400514932,1767689444399,-257.35902881,0.0003087,2]
[400514933,1767689444409,-548.103,0.00030997,2]
[400514934,1767689444419,-2000.0,0.00031,2]
[400514935,1767689444428,-172.71,0.00031199,2]
[400514936,1767689444437,-208.74,0.00031223,2]
[400514937,1767689444446,-430.34,0.00031223,30]
[400514938,1767689444455,-700.0,0.00031336,14]
[400514939,1767689444465,-500.0,0.00031336,14]
[400514940,1767689444474,-1000.0,0.00031336,14]
[400514942,1767689444483,-505.0,0.00031547,3]
[400514944,1767689444493,-162.61,0.00031551,2]
[400514945,1767689444503,-230.1,0.00031628,2]
[400514946,1767689444513,-2636.40954666,0.00031991,2]
[400514947,1767689444522,-776.00683,0.00032,2]
[400514948,1767689444531,-20600.4739145,0.00032017,2]
[400514949,1767689444541,-1622.6653481,0.00032017,2]
[400514950,1767689444550,-65388.52,0.000321,2]
[400514951,1767689444559,-151.0,0.000321,31]
[400514952,1767689444568,-151.0,0.000321,31]
[400514953,1767689444577,-176.914862,0.000321,31]
[400514954,1767689444586,-241.932821,0.000321,7]
[400514955,1767689444595,-241.932821,0.000321,7]
[400514956,1767689444604,-241.932821,0.000321,7]
[400514957,1767689444613,-241.932821,0.000321,7]
[400514958,1767689444623,-155.485538,0.000321,31]
[400514959,1767689444632,-151.0,0.000321,31]
[400514960,1767689444641,-151.0,0.000321,31]
[400514961,1767689444651,-151.0,0.000321,31]
[400514962,1767689444660,-182.735076,0.000321,31]
[400514963,1767689444671,-151.0,0.000321,31]
[400514964,1767689444680,-897.386425,0.000321,28]
[400514965,1767689444689,-897.386425,0.000321,28]
[400514966,1767689444698,-897.386425,0.000321,28]
[400514967,1767689444708,-897.386425,0.000321,28]
[400514968,1767689444717,-151.0,0.000321,31]
[400514969,1767689444726,-151.0,0.000321,31]
[400514970,1767689444735,-151.0,0.000321,31]
[400514971,1767689444744,-700.0,0.00032158,14]
[400514972,1767689444753,-500.0,0.00032158,14]
[400514973,1767689444762,-1000.0,0.00032158,14]
[400514974,1767689444771,-1294.21,0.00032249,2]
[400514975,1767689444780,-3043.9,0.000323,7]
[400514976,1767689444789,-929.5976048,0.00032505,2]
[400514977,1767689444799,-400.0,0.0003277,2]
[400514978,1767689444812,-7507.49058063,0.000328,2]
[400514979,1767689444821,-152.0,0.00032864,3]
[400514980,1767689444830,-924.61620087,0.0003287,2]
[400514981,1767689444840,-500.0,0.00032876,2]
[400514982,1767689444849,-500.0,0.00032876,2]
[400514983,1767689444858,-500.0,0.00032876,2]
[400514984,1767689444867,-500.0,0.00032876,2]
[400514985,1767689444878,-500.0,0.00032876,2]
[400514986,1767689444887,-500.0,0.00032876,2]
[400514987,1767689444896,-500.0,0.00032876,2]
[400514988,1767689444905,-434.53550809,0.00032876,2]
[400514989,1767689444915,-522.86,0.00032876,2]
[400514990,1767689444925,-522.86,0.00032876,2]
[400514991,1767689444934,-522.86,0.00032876,2]
[400514992,1767689444943,-522.86,0.00032876,2]
[400514993,1767689444952,-522.86,0.00032876,2]
[400514994,1767689444962,-522.86,0.00032876,2]
[400514995,1767689444971,-522.86,0.00032876,2]
[400514996,1767689444980,-522.86,0.00032876,2]
[400514997,1767689444990,-522.86,0.00032876,2]
[400514998,1767689444999,-522.86,0.00032876,2]
[400514999,1767689445009,-522.86,0.00032876,2]
[400515000,1767689445019,-522.86,0.00032876,2]
[400515001,1767689445027,-522.86,0.00032876,2]
[400515002,1767689445036,-522.86,0.00032876,2]
[400515003,1767689445046,-522.86,0.00032876,2]
[400515004,1767689445055,-522.86,0.00032876,2]
[400515005,1767689445064,-522.86,0.00032876,2]
[400515006,1767689445073,-522.86,0.00032876,2]
[400515007,1767689445082,-522.86,0.00032876,2]
[400515008,1767689445091,-522.86,0.00032876,2]
[400515009,1767689445099,-522.86,0.00032876,2]
[400515010,1767689445108,-522.86,0.00032876,2]
[400515011,1767689445117,-522.86,0.00032876,2]
[400515012,1767689445127,-522.95872478,0.00032876,2]
[400515013,1767689445136,-500.0,0.00032876,14]
[400515014,1767689445144,-500.0,0.00032876,14]
[400515015,1767689445154,-535.68928243,0.00032876,14]
[400515016,1767689445163,-547.92492441,0.00032876,30]
[400515017,1767689445172,-210.25516197,0.00032876,60]
[400515018,1767689445181,-200.0,0.00032876,2]
[400515019,1767689445190,-500.0,0.00032876,14]
[400515020,1767689445199,-500.0,0.00032876,14]
[400515021,1767689445208,-500.0,0.00032876,14]
[400515022,1767689445217,-500.0,0.00032876,14]
[400515024,1767689445227,-500.0,0.00032876,14]
[400515026,1767689445235,-500.0,0.00032876,14]
[400515028,1767689445244,-519.53687024,0.00032876,14]
[400515030,1767689445255,-1209.24,0.00032876,14]
[400515032,1767689445264,-1209.24,0.00032876,14]
[400515034,1767689445273,-1209.24,0.00032876,14]
[400515036,1767689445282,-1209.24,0.00032876,14]
[400515038,1767689445291,-1209.24,0.00032876,14]
[400515040,1767689445300,-1209.24,0.00032876,14]
[400515042,1767689445308,-1209.24,0.00032876,14]
[400515044,1767689445318,-1209.24,0.00032876,14]
[400515046,1767689445327,-1209.24,0.00032876,14]
[400515048,1767689445336,-1209.24,0.00032876,14]
[400515050,1767689445345,-500.0,0.00032876,14]
[400515052,1767689445354,-500.0,0.00032876,14]
[400515054,1767689445363,-500.0,0.00032876,14]
[400515056,1767689445372,-420.63451708,0.00032876,14]
[400515058,1767689445381,-500.0,0.00032876,30]
[400515060,1767689445390,-323.84650002,0.00032876,30]
[400515062,1767689445399,-338.51,0.00032876,2]
[400515064,1767689445409,-338.51,0.00032876,2]
[400515065,1767689445419,-338.51,0.00032876,2]
[400515068,1767689445428,-338.51,0.00032876,2]
[400515069,1767689445438,-338.51,0.00032876,2]
[400515070,1767689445447,-338.51,0.00032876,2]
[400515071,1767689445455,-338.51,0.00032876,2]
[400515072,1767689445464,-338.51,0.00032876,2]
[400515073,1767689445473,-338.51,0.00032876,2]
[400515074,1767689445482,-338.51,0.00032876,2]
[400515075,1767689445491,-500.0,0.00032876,2]
[400515076,1767689445501,-500.0,0.00032876,2]
[400515077,1767689445512,-500.0,0.00032876,2]
[400515078,1767689445521,-511.02229733,0.00032876,2]
[400515079,1767689445530,-404.81,0.00032876,2]
[400515080,1767689445541,-404.81,0.00032876,2]
[400515081,1767689445551,-404.81,0.00032876,2]
[400515082,1767689445560,-404.81,0.00032876,2]
[400515083,1767689445570,-404.81,0.00032876,2]
[400515084,1767689445579,-404.81,0.00032876,2]
[400515085,1767689445588,-404.81,0.00032876,2]
[400515086,1767689445598,-404.81,0.00032876,2]
[400515087,1767689445607,-404.81,0.00032876,2]
[400515088,1767689445616,-404.81,0.00032876,2]
[400515089,1767689445626,-500.0,0.00032876,2]
[400515090,1767689445635,-500.0,0.00032876,2]
[400515091,1767689445644,-500.0,0.00032876,2]
[400515092,1767689445653,-500.0,0.00032876,2]
[400515094,1767689445663,-500.0,0.00032876,2]
[400515095,1767689445672,-224.76120953,0.00032876,2]
[400515096,1767689445681,-299.85373399,0.00032876,20]
[400515097,1767689445691,-300.0,0.00032876,2]
[400515098,1767689445701,-300.0,0.00032876,2]
[400515099,1767689445711,-300.0,0.00032876,2]
[400515100,1767689445723,-300.0,0.00032876,2]
[400515101,1767689445732,-300.0,0.00032876,2]
[400515102,1767689445742,-300.0,0.00032876,2]
[400515103,1767689445751,-300.0,0.00032876,2]
[400515104,1767689445761,-300.0,0.00032876,2]
[400515105,1767689445772,-300.0,0.00032876,2]
[400515106,1767689445781,-300.0,0.00032876,2]
[400515107,1767689445790,-500.0,0.00032876,16]
[400515108,1767689445800,-500.0,0.00032876,16]
[400515109,1767689445810,-500.0,0.00032876,16]
[400515110,1767689445819,-500.0,0.00032876,16]
[400515111,1767689445828,-500.0,0.00032876,16]
[400515112,1767689445837,-500.0,0.00032876,16]
[400515113,1767689445847,-500.0,0.00032876,16]
[400515114,1767689445856,-444.70466039,0.00032876,16]
[400515115,1767689445865,-500.0,0.00032876,5]
[400515116,1767689445874,-500.0,0.00032876,5]
[400515117,1767689445884,-500.0,0.00032876,5]
[400515118,1767689445893,-9098.57,0.00032876,14]
[400515119,1767689445902,-500.0,0.00032876,5]
[400515120,1767689445911,-9098.57,0.00032876,14]
[400515121,1767689445920,-500.0,0.00032876,5]
[400515122,1767689445928,-9098.57,0.00032876,14]
[400515123,1767689445937,-500.0,0.00032876,5]
[400515124,1767689445946,-500.0,0.00032876,5]
[400515125,1767689445955,-9098.57,0.00032876,14]
[400515126,1767689445963,-399.86085977,0.00032876,5]
[400515127,1767689445972,-8693.27890549,0.00032876,14]
[400515128,1767689445988,-405.29109451,0.00032876,14]
[400515129,1767689445997,-9098.57,0.00032876,14]
[400515130,1767689446007,-9098.57,0.00032876,14]
[400515131,1767689446016,-429.09627379,0.00032876,14]
[400515132,1767689446098,-17288.54798798,0.00032164,2]
[400515133,1767689446107,-8669.47372621,0.00032876,14]
[400515134,1767689446116,-9098.57,0.00032876,14]
[400515135,1767689446125,-9098.57,0.00032876,14]
[400515136,1767689446134,-9098.57,0.00032876,14]
[400515137,1767689446144,-500.0,0.00032876,3]
[400515138,1767689446153,-500.0,0.00032876,3]
[400515139,1767689446162,-500.0,0.00032876,3]
[400515140,1767689446171,-500.0,0.00032876,3]
[400515141,1767689446180,-546.35770844,0.00032876,3]
[400515142,1767689446189,-470.39532049,0.00032876,39]
[400515143,1767689446198,-500.0,0.00032876,12]
[400515144,1767689446207,-500.0,0.00032876,12]
[400515145,1767689446216,-500.0,0.00032876,12]
[400515146,1767689446226,-500.0,0.00032876,12]
[400515147,1767689446235,-500.0,0.00032876,12]
[400515148,1767689446244,-500.0,0.00032876,12]
[400515149,1767689446253,-419.48848945,0.00032876,12]
[400515150,1767689446263,-538.48865637,0.00032876,30]
[400515151,1767689446273,-500.0,0.00032876,60]
[400515152,1767689446282,-500.0,0.00032876,60]
[400515153,1767689446291,-512.91553548,0.00032876,60]
[400515154,1767689446301,-500.0,0.00032876,60]
[400515155,1767689446310,-500.0,0.00032876,60]
[400515156,1767689446319,-500.0,0.00032876,7]
[400515157,1767689446328,-500.0,0.00032876,7]
[400515158,1767689446337,-500.0,0.00032876,7]
[400515159,1767689446347,-500.0,0.00032876,7]
[400515160,1767689446356,-500.0,0.00032876,7]
[400515161,1767689446364,-500.0,0.00032876,7]
[400515162,1767689446374,-500.0,0.00032876,7]
[400515163,1767689446383,-500.0,0.00032876,7]
[400515164,1767689446392,-500.0,0.00032876,7]
[400515165,1767689446402,-500.0,0.00032876,7]
[400515166,1767689446412,-500.0,0.00032876,2]
[400515167,1767689446421,-500.0,0.00032876,2]
[400515168,1767689446431,-500.0,0.00032876,2]
[400515169,1767689446441,-500.0,0.00032876,2]
[400515170,1767689446450,-500.0,0.00032876,2]
[400515171,1767689446459,-500.0,0.00032876,2]
[400515172,1767689446468,-500.0,0.00032876,2]
[400515173,1767689446477,-500.0,0.00032876,2]
[400515174,1767689446486,-500.0,0.00032876,2]
[400515175,1767689446495,-500.0,0.00032876,2]
[400515176,1767689446505,-500.0,0.00032876,2]
[400515177,1767689446515,-500.0,0.00032876,2]
[400515178,1767689446524,-500.0,0.00032876,2]
[400515179,1767689446533,-500.0,0.00032876,2]
[400515180,1767689446542,-500.0,0.00032876,2]
[400515182,1767689446551,-500.0,0.00032876,2]
[400515183,1767689446561,-200.0,0.00032876,2]
[400515185,1767689446570,-1301.53,0.00032876,2]
[400515186,1767689446579,-1301.53,0.00032876,2]
[400515187,1767689446589,-1301.53,0.00032876,2]
[400515188,1767689446598,-1301.53,0.00032876,2]
[400515189,1767689446607,-1301.53,0.00032876,2]
[400515190,1767689446616,-1301.53,0.00032876,2]
[400515191,1767689446625,-1301.53,0.00032876,2]
[400515192,1767689446635,-1301.53,0.00032876,2]
[400515193,1767689446644,-1301.53,0.00032876,2]
[400515194,1767689446653,-1301.53,0.00032876,2]
[400515195,1767689446663,-500.0,0.00032876,2]
[400515196,1767689446672,-500.0,0.00032876,2]
[400515197,1767689446682,-500.0,0.00032876,2]
[400515198,1767689446692,-498.65813863,0.00032876,2]
[400515199,1767689446701,-828.8,0.00032876,5]
[400515200,1767689446711,-828.8,0.00032876,5]
[400515201,1767689446719,-828.8,0.00032876,5]
[400515202,1767689446728,-828.8,0.00032876,5]
[400515203,1767689446738,-828.8,0.00032876,5]
[400515204,1767689446746,-828.8,0.00032876,5]
[400515205,1767689446755,-828.8,0.00032876,5]
[400515206,1767689446764,-828.8,0.00032876,5]
[400515207,1767689446773,-828.8,0.00032876,5]
[400515208,1767689446782,-828.8,0.00032876,5]
[400515209,1767689446791,-343.53,0.00032877,2]
[400515210,1767689446800,-151.0,0.00032877,31]
[400515211,1767689446818,-237.12745582,0.00032877,120]
[400515212,1767689446827,-500.0,0.00032877,7]
[400515213,1767689446835,-500.0,0.00032877,7]
[400515214,1767689446844,-500.0,0.00032877,7]
[400515215,1767689446854,-500.0,0.00032877,7]
[400515216,1767689446863,-500.0,0.00032877,7]
[400515217,1767689446871,-500.0,0.00032877,7]
[400515218,1767689446881,-500.0,0.00032877,7]
[400515219,1767689446890,-500.0,0.00032877,7]
[400515220,1767689446899,-500.0,0.00032877,7]
[400515221,1767689446908,-500.0,0.00032877,7]
[400515222,1767689446920,-500.0,0.00032877,7]
[400515223,1767689446930,-500.0,0.00032877,7]
[400515224,1767689446938,-500.0,0.00032877,7]
[400515225,1767689446947,-500.0,0.00032877,7]
[400515226,1767689446956,-500.0,0.00032877,7]
[400515227,1767689446965,-500.0,0.00032877,7]
[400515228,1767689446975,-500.0,0.00032877,7]
[400515229,1767689446986,-500.0,0.00032877,7]
[400515230,1767689446996,-500.0,0.00032877,7]
[400515231,1767689447007,-500.0,0.00032877,7]
[400515232,1767689447016,-161.86904021,0.00032877,7]
[400515233,1767689447025,-500.0,0.00032877,7]
[400515234,1767689447034,-500.0,0.00032877,7]
[400515235,1767689447043,-500.0,0.00032877,7]
[400515236,1767689447054,-500.0,0.00032877,7]
[400515237,1767689447064,-500.0,0.00032877,7]
[400515238,1767689447073,-500.0,0.00032877,7]
[400515239,1767689447082,-500.0,0.00032877,7]
[400515240,1767689447092,-500.0,0.00032877,7]
[400515241,1767689447102,-500.0,0.00032877,7]
[400515242,1767689447112,-500.0,0.00032877,7]
[400515243,1767689447123,-500.0,0.00032877,7]
[400515244,1767689447133,-500.0,0.00032877,7]
[400515245,1767689447142,-500.0,0.00032877,7]
[400515246,1767689447151,-500.0,0.00032877,7]
[400515247,1767689447160,-500.0,0.00032877,7]
[400515248,1767689447170,-500.0,0.00032877,7]
[400515249,1767689447179,-500.0,0.00032877,7]
[400515250,1767689447190,-500.0,0.00032877,7]
[400515251,1767689447199,-500.0,0.00032877,7]
[400515252,1767689447209,-500.0,0.00032877,7]
[400515253,1767689447220,-500.0,0.00032877,7]
[400515254,1767689447229,-500.0,0.00032877,7]
[400515255,1767689447239,-500.0,0.00032877,7]
[400515256,1767689447249,-500.0,0.00032877,7]
[400515257,1767689447260,-500.0,0.00032877,7]
[400515258,1767689447271,-500.0,0.00032877,7]
[400515259,1767689447281,-500.0,0.00032877,7]
[400515260,1767689447291,-500.0,0.00032877,7]
[400515261,1767689447304,-500.0,0.00032877,7]
[400515262,1767689447314,-500.0,0.00032877,7]
[400515263,1767689447324,-500.0,0.00032877,7]
[400515264,1767689447333,-500.0,0.00032877,7]
[400515265,1767689447342,-500.0,0.00032877,7]
[400515266,1767689447354,-500.0,0.00032877,7]
[400515267,1767689447363,-500.0,0.00032877,7]
[400515268,1767689447373,-500.0,0.00032877,7]
[400515269,1767689447382,-500.0,0.00032877,7]
[400515270,1767689447392,-500.0,0.00032877,7]
[400515271,1767689447401,-500.0,0.00032877,7]
[400515272,1767689447410,-500.0,0.00032877,7]
[400515273,1767689447419,-500.0,0.00032877,7]
[400515274,1767689447428,-500.0,0.00032877,7]
[400515275,1767689447437,-500.0,0.00032877,7]
[400515276,1767689447447,-500.0,0.00032877,7]
[400515277,1767689447456,-500.0,0.00032877,7]
[400515278,1767689447465,-500.0,0.00032877,7]
[400515279,1767689447474,-500.0,0.00032877,7]
[400515280,1767689447483,-500.0,0.00032877,7]
[400515281,1767689447492,-500.0,0.00032877,7]
[400515282,1767689447503,-500.0,0.00032877,7]
[400515283,1767689447513,-500.0,0.00032877,7]
[400515284,1767689447523,-500.0,0.00032877,7]
[400515285,1767689447532,-266.18690402,0.00032877,7]
[400515286,1767689447541,-500.0,0.00032877,7]
[400515287,1767689447551,-1209.24,0.00032899,14]
[400515288,1767689447560,-338.51,0.00032899,2]
[400515289,1767689447569,-500.0,0.00032899,120]
[400515290,1767689447579,-404.81,0.00032899,2]
[400515291,1767689447589,-300.0,0.00032899,2]
[400515292,1767689447598,-283.79534278,0.00032899,7]
[400515293,1767689447608,-500.0,0.00032899,2]
[400515294,1767689447617,-500.0,0.00032899,2]
[400515295,1767689447626,-1301.53,0.00032899,2]
[400515296,1767689447636,-828.8,0.00032899,5]
[400515297,1767689447645,-15459.42641282,0.000329,30]
[400515298,1767689447674,-20.68562689,0.000329,30]
[400515299,1767689447736,-999.0,0.00028735,3]
[400515300,1767689447745,-406.02414376,0.000329,30]
[400515301,1767689447755,-4436.81657435,0.000329,30]
[400515302,1767689447766,-1252.14882209,0.000329,30]
[400515303,1767689447777,-608.21731146,0.000329,30]
[400515304,1767689447788,-1434.61950838,0.000329,30]
[400515305,1767689447800,-629.8598895,0.000329,30]
[400515306,1767689447817,-7451.09383992,0.000329,30]
[400515307,1767689447827,-7816.16,0.000329,2]
[400515308,1767689447836,-65388.52,0.000329,2]
[400515309,1767689447845,-15483.20460499,0.000329,2]
[400515310,1767689447856,-530.71688643,0.000329,2]
[400515311,1767689447866,-868.9541,0.000329,2]
[400515312,1767689447877,-318.19988001,0.000329,2]
[400515313,1767689447888,-4768.89286219,0.000329,2]
[400515314,1767689447898,-428.14468468,0.000329,2]
[400515315,1767689467407,195.0,0.00017489,120]
[400515316,1767689468870,2500.0,0.00017489,120]
[400515317,1767689708346,-177.33670738,0.00015699,2]
[400515318,1767689708371,-300.0,0.00015789,2]
[400515319,1767689708394,-1200.0,0.00015789,2]
[400515320,1767689708429,-300.0,0.00015789,2]
[400515321,1767689708462,-998022.66329262,0.0001579,2]
[400515325,1767689869566,-1977.33670738,0.0001579,2]
[400515326,1767689869589,-22.66329262,0.00015899,2]
[400515328,1767690123195,500.0,0.00032876,120]
[400515333,1767690564352,360.95393593,0.000328,120]
[400515338,1767690632012,-302.24870971,0.00015899,2]
[400515339,1767690632022,-500.0,0.00015899,2]
[400515340,1767690632032,-500.0,0.00015899,2]
[400515341,1767690632041,-130.36659219,0.00015899,2]
[400515342,1767690632053,-369.63340781,0.00015899,2]
[400515343,1767690632062,-476.91426169,0.00015899,2]
[400515344,1767690632072,-250.0,0.00015984,2]
[400515345,1767690632080,-175.0614632,0.0001607,4]
[400515346,1767690632090,-180.89356464,0.00016881,2]
[400515347,1767690632099,-250.0,0.00017,2]
[400515348,1767690632108,-195.0,0.00017488,2]
[400515349,1767690632119,-250.0,0.00017489,2]
[400515350,1767690632129,-151.0,0.00017947,2]
[400515351,1767690632138,-151.0,0.00017988,2]
[400515352,1767690632148,-151.0,0.0001799,2]
[400515353,1767690632157,-150.0,0.00018,7]
[400515354,1767690632166,-151.0,0.00018108,2]
[400515355,1767690632175,-655.09476452,0.00020604,2]
[400515356,1767690632187,-1330.76523548,0.00020604,2]
[400515357,1767690632199,-3056.90828836,0.00023663,2]
[400515358,1767690632213,-17035.76171164,0.00023663,2]
[400515359,1767690632224,-1000.0,0.000238,2]
[400515360,1767690632233,-740.3,0.000238,2]